bitfinex/quotes_SOLUSD_20251119
["timestamp","ask_amount","ask_price","bid_price","bid_amount"]
[1763586778330,10.99717558,133.54,133.51,20.58096]
[1763586778858,10.99717558,133.53,133.51,20.58096]
[1763586779048,10.99717558,133.52,133.49,18.78096]
[1763586779212,10.99717558,133.5,133.49,18.12096]
[1763586779417,10.99717558,133.51,133.49,19.92096]
[1763586779838,10.99717558,133.51,133.49,20.58096]
[1763586780034,0.66,133.55,133.5,0.66]
[1763586780245,0.66,133.58,133.5,0.66]
[1763586780438,10.99717558,133.57,133.52,10.99717558]
[1763586780633,10.99717558,133.58,133.53,1.8]
[1763586780848,0.86,133.6,133.53,31.57813558]
[1763586781053,10.99717558,133.58,133.54,0.66]
[1763586781332,10.99717558,133.58,133.54,18.78096]
[1763586781641,10.99717558,133.58,133.55,0.66]
[1763586781843,10.99717558,133.59,133.56,1.8]
[1763586782053,10.99717558,133.58,133.56,1.8]
[1763586782227,10.99717558,133.59,133.56,1.8]
[1763586782429,11.19717558,133.6,133.57,0.66]
[1763586783538,0.2,133.6,133.57,0.66]
[1763586783737,11.19717558,133.6,133.57,0.66]
[1763586783955,10.99717558,133.59,133.56,1.8]
[1763586784152,0.2,133.6,133.57,0.66]
[1763586784971,10.99717558,133.59,133.58,1.8]
[1763586786530,11.19717558,133.6,133.58,1.8]
[1763586787028,10.99717558,133.59,133.58,1.8]
[1763586788075,11.19717558,133.6,133.58,1.8]
[1763586788243,0.2,133.6,133.58,20.58096]
[1763586788444,11.19717558,133.6,133.58,20.58096]
[1763586788851,0.2,133.6,133.59,0.66]
[1763586789963,0.2,133.6,133.59,18.78096]
[1763586794778,0.2,133.6,133.59,28.56978769]
[1763586795865,0.2,133.6,133.58,1.8]
[1763586796057,0.2,133.6,133.59,18.78096]
[1763586800072,0.2,133.6,133.59,28.56978769]
[1763586800978,0.2,133.6,133.59,72.54882769]
[1763586801752,0.2,133.6,133.59,77.14840001]
[1763586801952,0.2,133.6,133.59,15.04840001]
[1763586802183,0.2,133.6,133.59,33.16936001]
[1763586802355,0.86,133.6,133.59,27.75978769]
[1763586802563,5.45957232,133.6,133.52,0.71]
[1763586802879,4.59957232,133.55,133.53,1.8]
[1763586803057,0.57,133.59,133.53,1.8]
[1763586803254,4.59957232,133.55,133.53,1.8]
[1763586803565,0.57,133.59,133.53,1.8]
[1763586803566,4.59957232,133.54,133.53,1.8]
[1763586803770,5.16957232,133.54,133.5,1.8]
[1763586803973,4.59957232,133.51,133.47,0.71]
[1763586804281,4.59957232,133.51,133.48,1.8]
[1763586804578,0.57,133.53,133.48,1.8]
[1763586804779,11.00381399,133.51,133.49,0.71]
[1763586805448,0.2,133.6,133.5,18.12096]
[1763586805668,11.00381399,133.53,133.51,1.8]
[1763586806559,11.00381399,133.54,133.52,0.68]
[1763586807065,11.00381399,133.54,133.51,1.8]
[1763586807262,11.00381399,133.55,133.52,0.68]
[1763586807480,11.00381399,133.53,133.51,1.8]
[1763586807860,11.00381399,133.53,133.51,2.48]
[1763586808861,18.12096,133.58,133.52,0.68]
[1763586809072,11.00381399,133.55,133.52,0.68]
[1763586810283,18.12096,133.58,133.52,0.68]
[1763586810493,11.00381399,133.56,133.52,0.68]
[1763586811088,11.00381399,133.57,133.52,11.68381399]
[1763586811257,0.2,133.6,133.53,0.68]
[1763586811459,11.00381399,133.59,133.54,1.8]
[1763586811661,11.20381399,133.6,133.55,29.80477399]
[1763586812060,11.20381399,133.6,133.56,0.68]
[1763586812265,0.2,133.6,133.57,1.8]
[1763586812466,0.2,133.6,133.58,11.00381399]
[1763586812672,0.2,133.6,133.58,11.68381399]
[1763586812869,0.2,133.6,133.59,0.68]
[1763586814168,0.2,133.6,133.57,0.68]
[1763586814370,11.20381399,133.6,133.59,1.8]
[1763586815499,0.2,133.6,133.59,1.8]
[1763586816078,0.2,133.6,133.59,2.48]
[1763586817084,11.20381399,133.6,133.59,1.8]
[1763586818380,11.20381399,133.6,133.55,11.00381399]
[1763586818586,0.2,133.6,133.56,12.80381399]
[1763586818773,0.2,133.6,133.57,11.68381399]
[1763586819197,0.2,133.6,133.58,0.68]
[1763586819373,0.2,133.6,133.59,1.8]
[1763586819569,0.2,133.6,133.59,2.48]
[1763586821691,0.2,133.6,133.59,64.58]
[1763586824977,0.2,133.6,133.59,85.37264168]
[1763586825395,0.2,133.6,133.59,64.58]
[1763586826885,0.2,133.6,133.59,2.48]
[1763586831493,0.2,133.6,133.59,1.8]
[1763586831701,18.12096,133.57,133.51,11.00381399]
[1763586831902,18.12096,133.57,133.46,0.67]
[1763586831903,11.00381399,133.52,133.46,0.67]
[1763586832085,11.57381399,133.56,133.47,20.59096]
[1763586832410,11.00381399,133.5,133.48,18.12096]
[1763586833714,11.00381399,133.52,133.49,0.67]
[1763586833904,11.00381399,133.52,133.5,1.8]
[1763586834603,0.57,133.55,133.5,1.8]
[1763586834801,11.00381399,133.52,133.5,1.8]
[1763586836198,11.00381399,133.51,133.5,1.8]
[1763586836606,11.00381399,133.51,133.47,18.12096]
[1763586836802,11.00381399,133.49,133.48,1.8]
[1763586837198,11.00381399,133.5,133.48,1.8]
[1763586837893,11.00381399,133.49,133.48,1.8]
[1763586838825,7.0260851,133.49,133.48,1.8]
[1763586840396,7.0260851,133.49,133.45,0.1]
[1763586840601,7.0260851,133.52,133.45,1.9]
[1763586840602,7.0260851,133.46,133.45,1.9]
[1763586841826,7.5960851,133.46,133.45,1.9]
[1763586842003,7.0260851,133.46,133.45,1.9]
[1763586843597,0.57,133.48,133.45,1.9]
[1763586843800,7.0260851,133.47,133.45,1.9]
[1763586844120,7.0260851,133.49,133.46,0.67]
[1763586844303,7.0260851,133.48,133.46,0.67]
[1763586844512,18.69096,133.51,133.46,1.8]
[1763586844826,7.0260851,133.47,133.46,1.8]
[1763586845305,7.0260851,133.48,133.46,1.8]
[1763586845717,7.0260851,133.48,133.46,2.47]
[1763586845914,7.0260851,133.48,133.46,1.8]
[1763586847034,7.0260851,133.49,133.46,2.47]
[1763586847222,1.8,133.55,133.46,1.8]
[1763586847223,7.0260851,133.48,133.46,1.8]
[1763586847608,7.0260851,133.48,133.46,2.47]
[1763586849015,7.0260851,133.48,133.46,1.8]
[1763586849221,7.0260851,133.47,133.46,1.8]
[1763586849638,7.0260851,133.47,133.45,0.1]
[1763586849639,7.5960851,133.47,133.45,0.1]
[1763586849838,7.5960851,133.46,133.45,0.1]
[1763586850444,18.12096,133.49,133.45,0.1]
[1763586850649,7.5960851,133.46,133.45,0.1]
[1763586850932,7.0260851,133.46,133.45,0.1]
[1763586852121,7.0260851,133.47,133.45,0.77]
[1763586852341,7.0260851,133.47,133.46,1.8]
[1763586853211,7.5960851,133.47,133.45,0.1]
[1763586853407,7.5960851,133.46,133.45,0.1]
[1763586855418,17.38491279,133.46,133.45,0.1]
[1763586855926,24.41099789,133.46,133.4,1.8]
[1763586856234,7.0260851,133.41,133.4,1.8]
[1763586856443,7.0260851,133.41,133.38,18.79096]
[1763586856757,7.0260851,133.4,133.38,18.79096]
[1763586857114,7.0260851,133.4,133.38,18.12096]
[1763586857536,7.0260851,133.4,133.38,18.79096]
[1763586858424,7.0260851,133.4,133.37,0.1]
[1763586858735,7.0260851,133.41,133.39,0.67]
[1763586860433,7.0260851,133.4,133.37,0.78]
[1763586860626,7.0260851,133.39,133.37,0.78]
[1763586860828,2.9544236,133.4,133.37,0.78]
[1763586861024,2.9544236,133.39,133.37,0.78]
[1763586861642,2.9544236,133.38,133.37,0.1]
[1763586862846,18.12096,133.43,133.37,0.78]
[1763586862847,2.9544236,133.4,133.37,0.78]
[1763586863441,18.69096,133.43,133.37,0.78]
[1763586863623,2.9544236,133.41,133.37,0.78]
[1763586863828,2.9544236,133.4,133.37,0.78]
[1763586864247,2.9544236,133.41,133.37,0.78]
[1763586864443,0.57,133.43,133.37,0.78]
[1763586864644,2.9544236,133.41,133.37,0.78]
[1763586864939,7.0331623,133.41,133.37,0.78]
[1763586865653,18.69096,133.45,133.37,0.78]
[1763586865836,7.0331623,133.43,133.37,7.8131623]
[1763586866039,18.69096,133.45,133.37,7.8131623]
[1763586866250,7.0331623,133.42,133.38,0.67]
[1763586866424,7.0331623,133.42,133.39,1.8]
[1763586866830,7.0331623,133.42,133.4,0.67]
[1763586867041,7.0331623,133.42,133.4,2.47]
[1763586867834,7.0331623,133.41,133.4,2.47]
[1763586868259,7.0331623,133.42,133.4,2.47]
[1763586869235,7.0331623,133.45,133.41,0.67]
[1763586869742,7.0331623,133.46,133.41,7.7031623]
[1763586870069,7.0331623,133.46,133.41,18.79096]
[1763586870230,7.0331623,133.45,133.42,0.67]
[1763586870430,7.0331623,133.45,133.43,1.8]
[1763586871135,7.0331623,133.46,133.43,1.8]
[1763586871335,7.0331623,133.46,133.43,2.47]
[1763586871935,7.0331623,133.46,133.43,1.8]
[1763586872136,18.69096,133.48,133.44,0.67]
[1763586872360,7.0331623,133.46,133.44,0.67]
[1763586873935,7.0331623,133.48,133.44,0.67]
[1763586874837,7.0331623,133.46,133.44,0.67]
[1763586876064,7.0331623,133.47,133.44,0.67]
[1763586876567,18.69096,133.5,133.44,0.67]
[1763586876768,7.0331623,133.48,133.44,0.67]
[1763586876974,7.0331623,133.47,133.44,0.67]
[1763586877358,18.12096,133.49,133.44,0.67]
[1763586877555,7.0331623,133.47,133.44,0.67]
[1763586880750,7.0331623,133.48,133.44,0.67]
[1763586882475,22.5318262,133.57,133.44,69.8031623]
[1763586882784,7.0331623,133.5,133.45,7.7031623]
[1763586883084,7.0331623,133.5,133.46,1.8]
[1763586883272,7.0331623,133.5,133.46,2.47]
[1763586883592,7.0331623,133.5,133.47,0.67]
[1763586884062,7.0331623,133.51,133.47,0.67]
[1763586884678,7.0331623,133.52,133.47,7.7031623]
[1763586884975,2.94891187,133.52,133.47,3.61891187]
[1763586885179,2.94891187,133.52,133.48,0.67]
[1763586885477,2.94891187,133.52,133.49,1.8]
[1763586885944,0.57,133.54,133.43,62.1]
[1763586885945,2.94891187,133.5,133.43,62.1]
[1763586886146,2.94891187,133.48,133.45,0.67]
[1763586887371,0.57,133.48,133.46,1.8]
[1763586887574,2.94891187,133.47,133.46,1.8]
[1763586888278,2.94891187,133.48,133.46,1.8]
[1763586889456,0.57,133.54,133.47,0.67]
[1763586889657,2.94891187,133.52,133.47,0.67]
[1763586890559,2.94891187,133.51,133.47,0.67]
[1763586891786,2.94891187,133.5,133.47,0.67]
[1763586894301,2.94891187,133.48,133.46,1.8]
[1763586894461,18.12096,133.53,133.47,0.68]
[1763586894462,2.94891187,133.49,133.47,0.68]
[1763586895172,2.94891187,133.5,133.47,0.68]
[1763586895473,21.06987187,133.53,133.47,3.62891187]
[1763586895677,18.12096,133.53,133.47,65.72891187]
[1763586895975,2.94891187,133.53,133.48,0.68]
[1763586896288,2.94891187,133.53,133.49,1.8]
[1763586896503,0.57,133.57,133.5,12.73773956]
[1763586896686,2.94891187,133.56,133.51,0.68]
[1763586897001,0.2,133.59,133.52,4.74891187]
[1763586897164,2.94891187,133.57,133.52,4.74891187]
[1763586897360,2.94891187,133.57,133.53,0.68]
[1763586897775,2.94891187,133.56,133.53,0.68]
[1763586898785,4.60457674,133.56,133.53,0.68]
[1763586900366,4.60457674,133.57,133.53,0.68]
[1763586901385,0.2,133.59,133.54,9.78882769]
[1763586901572,0.2,133.59,133.55,1.8]
[1763586901573,4.60457674,133.57,133.55,1.8]
[1763586902183,4.60457674,133.57,133.55,2.48]
[1763586902492,4.60457674,133.58,133.55,2.48]
[1763586902690,0.2,133.59,133.56,0.68]
[1763586902865,4.80457674,133.59,133.56,0.68]
[1763586903193,5.17457674,133.58,133.53,4.60457674]
[1763586903491,4.60457674,133.57,133.54,1.8]
[1763586903691,4.60457674,133.55,133.51,9.78882769]
[1763586904022,4.60457674,133.56,133.52,2.48]
[1763586904494,4.60457674,133.56,133.53,0.68]
[1763586905997,18.32096,133.59,133.53,0.68]
[1763586905998,0.2,133.59,133.54,4.60457674]
[1763586906195,0.2,133.59,133.55,6.40457674]
[1763586906371,4.80457674,133.59,133.55,1.8]
[1763586906686,0.2,133.59,133.56,0.68]
[1763586906992,4.80457674,133.59,133.56,0.68]
[1763586907494,4.60457674,133.58,133.55,1.8]
[1763586907795,0.77,133.59,133.56,5.28457674]
[1763586907796,0.2,133.59,133.56,5.28457674]
[1763586908001,0.2,133.59,133.57,0.68]
[1763586908166,0.2,133.59,133.58,1.8]
[1763586908669,4.80457674,133.59,133.58,1.8]
[1763586908992,4.80457674,133.59,133.55,1.8]
[1763586908993,0.77,133.59,133.55,1.8]
[1763586909192,4.60457674,133.58,133.56,0.68]
[1763586909366,4.80457674,133.59,133.56,0.68]
[1763586910197,4.60457674,133.57,133.53,0.68]
[1763586910379,4.60457674,133.56,133.55,1.8]
[1763586910771,10.99459188,133.56,133.55,1.8]
[1763586911071,10.99459188,133.58,133.55,2.48]
[1763586911272,0.2,133.59,133.55,2.48]
[1763586911273,11.19459188,133.59,133.56,0.68]
[1763586912292,10.99459188,133.58,133.56,0.68]
[1763586912585,11.19459188,133.59,133.56,0.68]
[1763586913200,0.2,133.59,133.57,9.78882769]
[1763586913491,0.2,133.59,133.58,2.48]
[1763586913968,0.2,133.59,133.58,12.26882769]
[1763586914373,0.2,133.59,133.58,2.48]
[1763586915381,0.2,133.59,133.58,14.22320694]
[1763586918097,0.2,133.59,133.58,24.01203463]
[1763586918269,0.2,133.59,133.58,12.26882769]
[1763586919181,0.2,133.59,133.58,23.26341957]
[1763586919392,0.2,133.59,133.58,12.26882769]
[1763586920280,0.2,133.59,133.58,74.36882769]
[1763586923792,0.2,133.59,133.58,73.68882769]
[1763586923968,0.2,133.59,133.58,11.58882769]
[1763586924170,0.2,133.59,133.58,12.27882769]
[1763586924595,0.2,133.59,133.58,23.27341957]
[1763586925286,0.2,133.59,133.58,41.39437957]
[1763586926285,0.2,133.6,133.59,20.78341957]
[1763586926480,0.2,133.6,133.59,84.31197859]
[1763586927697,0.2,133.6,133.59,71.88882769]
[1763586927903,0.2,133.6,133.59,74.36882769]
[1763586930383,0.2,133.6,133.59,85.36341957]
[1763586932903,0.2,133.6,133.59,78.96774802]
[1763586939502,0.2,133.6,133.59,9.78882769]
[1763586939681,0.2,133.6,133.59,11.58882769]
[1763586939887,0.2,133.6,133.59,29.70978769]
[1763586940205,0.2,133.6,133.59,34.30870802]
[1763586940593,0.2,133.6,133.59,19.92096]
[1763586940998,0.2,133.6,133.59,1.8]
[1763586941198,0.2,133.6,133.59,19.92096]
[1763586941400,0.91,133.6,133.59,1.8]
[1763586942603,0.2,133.6,133.59,1.8]
[1763586943611,0.91,133.6,133.59,1.8]
[1763586943915,5.50892033,133.6,133.53,9.78882769]
[1763586944091,4.59892033,133.57,133.54,1.8]
[1763586944414,4.59892033,133.58,133.54,1.8]
[1763586944626,4.59892033,133.56,133.54,1.8]
[1763586944916,4.59892033,133.55,133.54,1.8]
[1763586945092,5.30892033,133.55,133.54,1.8]
[1763586946120,18.32096,133.6,133.54,1.8]
[1763586946315,4.59892033,133.56,133.54,1.8]
[1763586946703,0.71,133.55,133.54,1.8]
[1763586946904,5.30892033,133.55,133.54,1.8]
[1763586948109,0.71,133.55,133.54,1.8]
[1763586949003,5.30892033,133.57,133.54,1.8]
[1763586949831,5.30892033,133.56,133.54,1.8]
[1763586950234,4.59892033,133.56,133.54,1.8]
[1763586950533,5.24892033,133.55,133.53,1.8]
[1763586951547,0.65,133.55,133.53,1.8]
[1763586952500,5.24892033,133.55,133.53,1.8]
[1763586953129,5.24892033,133.57,133.53,2.46]
[1763586953735,4.59892033,133.57,133.53,2.46]
[1763586953921,0.65,133.56,133.53,2.46]
[1763586954332,0.65,133.56,133.53,1.8]
[1763586955341,4.59892033,133.56,133.53,63.9]
[1763586955517,5.24892033,133.55,133.53,63.9]
[1763586955837,0.65,133.54,133.53,1.8]
[1763586956227,5.24892033,133.54,133.53,1.8]
[1763586960237,5.24892033,133.54,133.49,62.1]
[1763586960546,4.59892033,133.52,133.5,1.8]
[1763586960732,5.24892033,133.52,133.5,1.8]
[1763586960929,3.59917561,133.52,133.5,1.8]
[1763586961129,0.65,133.52,133.5,1.8]
[1763586962225,2.94917561,133.51,133.47,66.0154314]
[1763586962433,0.65,133.52,133.49,1.8]
[1763586962434,2.94917561,133.5,133.49,1.8]
[1763586962847,3.59917561,133.5,133.49,1.8]
[1763586963345,2.94917561,133.51,133.49,1.8]
[1763586963846,0.65,133.5,133.49,1.8]
[1763586964069,2.94917561,133.51,133.49,1.8]
[1763586964251,3.59917561,133.53,133.49,2.46]
[1763586964820,0.65,133.53,133.49,2.46]
[1763586965022,2.94917561,133.53,133.49,2.46]
[1763586965251,0.65,133.52,133.49,2.46]
[1763586965637,2.94917561,133.54,133.49,2.46]
[1763586965849,0.65,133.53,133.49,2.46]
[1763586966037,0.65,133.53,133.49,5.40917561]
[1763586967848,18.12096,133.56,133.52,2.94917561]
[1763586968053,0.65,133.58,133.54,2.94917561]
[1763586968443,0.2,133.63,133.57,2.94917561]
[1763586968773,0.2,133.63,133.59,2.94917561]
[1763586969143,0.85,133.63,133.58,19.92096]
[1763586969338,0.85,133.63,133.58,23.53013561]
[1763586969541,0.85,133.63,133.59,3.60917561]
[1763586969855,0.2,133.63,133.59,13.3980033]
[1763586970832,0.2,133.63,133.62,30.8589633]
[1763586971032,0.2,133.63,133.62,33.3189633]
[1763586971428,0.2,133.63,133.62,30.36978769]
[1763586971643,0.2,133.63,133.62,33.3189633]
[1763586972049,0.2,133.63,133.62,36.26813891]
[1763586972248,0.2,133.63,133.62,33.3189633]
[1763586972857,0.2,133.63,133.62,37.37271254]
[1763586973666,0.2,133.73,133.71,9.78882769]
[1763586973962,0.2,133.73,133.72,17.45175254]
[1763586974149,0.2,133.73,133.72,19.25175254]
[1763586974361,0.65,133.81,133.73,9.78882769]
[1763586974546,7.00292485,133.78,133.73,10.44882769]
[1763586974732,7.00292485,133.76,133.73,9.78882769]
[1763586974939,7.00292485,133.78,133.74,1.8]
[1763586975234,7.00292485,133.77,133.75,1.8]
[1763586975465,0.65,133.78,133.75,1.8]
[1763586975668,7.00292485,133.77,133.75,1.8]
[1763586975865,7.00292485,133.76,133.73,9.78882769]
[1763586976158,7.00292485,133.76,133.74,1.8]
[1763586976340,0.65,133.75,133.72,18.12096]
[1763586976549,7.65292485,133.75,133.73,1.8]
[1763586978370,7.00292485,133.75,133.73,1.8]
[1763586978541,7.00292485,133.75,133.74,1.8]
[1763586979097,7.00292485,133.75,133.73,1.8]
[1763586979275,7.00292485,133.74,133.73,1.8]
[1763586980360,18.12096,133.78,133.73,1.8]
[1763586980568,7.00292485,133.76,133.73,2.48]
[1763586980770,7.00292485,133.84,133.73,2.48]
[1763586980771,0.68,133.79,133.74,0.68]
[1763586981278,7.00292485,133.78,133.74,0.68]
[1763586981482,0.68,133.81,133.75,18.12096]
[1763586981647,7.00292485,133.8,133.76,1.8]
[1763586981973,7.00292485,133.78,133.76,1.8]
[1763586982271,0.68,133.8,133.76,2.48]
[1763586982651,7.00292485,133.79,133.76,2.48]
[1763586983275,7.00292485,133.77,133.75,18.12096]
[1763586983573,0.68,133.78,133.71,18.80096]
[1763586983875,7.00292485,133.75,133.72,11.56882769]
[1763586984087,0.68,133.77,133.72,1.78]
[1763586984276,7.00292485,133.75,133.73,0.68]
[1763586984981,7.00292485,133.76,133.73,0.68]
[1763586985479,18.12096,133.8,133.73,0.68]
[1763586985641,7.00292485,133.78,133.74,9.78882769]
[1763586985846,7.00292485,133.78,133.75,1.78]
[1763586986158,7.00292485,133.78,133.75,2.48]
[1763586988269,7.00292485,133.78,133.75,1.78]
[1763586988459,7.00292485,133.78,133.75,2.48]
[1763586989259,7.00292485,133.76,133.72,0.7]
[1763586989581,0.69,133.77,133.71,25.12388485]
[1763586989582,7.00292485,133.75,133.73,1.78]
[1763586989950,7.69292485,133.75,133.73,1.78]
[1763586990354,7.69292485,133.74,133.69,0.7]
[1763586990556,7.00292485,133.72,133.66,0.7]
[1763586990780,7.00292485,133.71,133.67,1.78]
[1763586990980,7.00292485,133.69,133.64,7.70292485]
[1763586991184,18.12096,133.75,133.66,7.00292485]
[1763586991488,7.00292485,133.78,133.72,7.00292485]
[1763586991656,7.00292485,133.76,133.73,1.78]
[1763586991862,7.00292485,133.74,133.73,1.78]
[1763586992162,7.00292485,133.75,133.73,1.78]
[1763586992362,18.12096,133.8,133.73,1.78]
[1763586992557,7.00292485,133.75,133.73,1.78]
[1763586992759,7.00292485,133.76,133.73,1.78]
[1763586993158,0.69,133.75,133.73,1.78]
[1763586994804,7.69292485,133.75,133.73,1.78]
[1763586995888,0.69,133.77,133.73,1.78]
[1763586996094,7.00292485,133.78,133.73,9.48292485]
[1763586996257,7.00292485,133.78,133.73,64.58]
[1763586996458,0.69,133.77,133.73,64.58]
[1763586998665,7.00292485,133.79,133.74,7.70292485]
[1763586998859,3.62672581,133.8,133.75,2.93672581]
[1763586999068,3.62672581,133.8,133.76,1.78]
[1763586999266,3.62672581,133.79,133.76,1.78]
[1763586999668,18.12096,133.81,133.77,0.7]
[1763586999987,0.69,133.82,133.77,0.7]
[1763586999988,18.12096,133.82,133.77,0.7]
[1763587000165,21.74768581,133.82,133.77,0.7]
[1763587000363,2.93672581,133.81,133.77,0.7]
[1763587000790,6.99111619,133.81,133.77,0.7]
[1763587000971,7.68111619,133.81,133.77,0.7]
[1763587002674,0.69,133.81,133.77,0.7]
[1763587003092,7.68111619,133.81,133.77,0.7]
[1763587003594,6.99111619,133.8,133.77,0.7]
[1763587003798,6.99111619,133.79,133.76,1.78]
[1763587004110,18.12096,133.85,133.77,0.7]
[1763587004111,0.69,133.82,133.77,0.7]
[1763587004465,6.99111619,133.81,133.77,0.7]
[1763587004868,7.68111619,133.81,133.77,0.7]
[1763587005282,0.69,133.81,133.77,0.7]
[1763587005493,7.68111619,133.81,133.77,0.7]
[1763587006280,6.99111619,133.81,133.77,0.7]
[1763587006507,7.68111619,133.81,133.77,0.7]
[1763587006803,6.99111619,133.82,133.77,7.69111619]
[1763587006979,0.69,133.83,133.77,0.7]
[1763587006980,6.99111619,133.81,133.77,0.7]
[1763587007180,6.99111619,133.81,133.77,10.48882769]
[1763587007381,6.99111619,133.81,133.78,0.7]
[1763587007580,0.69,133.8,133.79,1.78]
[1763587007806,7.68111619,133.8,133.79,1.78]
[1763587008381,7.68111619,133.8,133.75,18.12096]
[1763587008606,6.99111619,133.78,133.73,0.7]
[1763587008780,6.99111619,133.78,133.75,1.78]
[1763587008978,7.68111619,133.78,133.75,1.78]
[1763587009382,3.77999999,133.87,133.75,2.48]
[1763587009383,18.12096,133.85,133.75,2.48]
[1763587009598,6.99111619,133.79,133.75,2.48]
[1763587010191,7.67111619,133.79,133.75,2.48]
[1763587011480,0.68,133.79,133.75,2.48]
[1763587011685,18.12096,133.81,133.76,0.72]
[1763587011910,6.99111619,133.8,133.76,0.72]
[1763587012114,18.12096,133.81,133.77,6.99111619]
[1763587012307,18.80096,133.83,133.78,9.49111619]
[1763587012482,6.99111619,133.82,133.78,2.5]
[1763587012686,7.67111619,133.82,133.78,2.5]
[1763587013001,0.68,133.81,133.78,2.5]
[1763587013712,0.68,133.81,133.78,1.78]
[1763587014120,0.68,133.83,133.78,9.49111619]
[1763587014314,7.67111619,133.83,133.79,0.72]
[1763587015116,6.99111619,133.84,133.79,7.71111619]
[1763587015413,7.67111619,133.84,133.8,0.72]
[1763587015608,18.80096,133.86,133.81,1.78]
[1763587015815,6.99111619,133.84,133.81,1.78]
[1763587015990,0.68,133.85,133.81,1.78]
[1763587016310,0.68,133.84,133.81,1.78]
[1763587016511,7.67111619,133.84,133.81,1.78]
[1763587016814,0.68,133.84,133.81,1.78]
[1763587017115,6.99111619,133.85,133.81,2.5]
[1763587017293,7.67111619,133.85,133.81,2.5]
[1763587017695,7.67111619,133.86,133.82,0.72]
[1763587018106,6.99111619,133.86,133.82,0.72]
[1763587018300,6.99111619,133.87,133.82,0.72]
[1763587018516,7.67111619,133.86,133.82,0.72]
[1763587019091,0.68,133.86,133.82,0.72]
[1763587019312,7.67111619,133.86,133.82,0.72]
[1763587020389,18.80096,133.89,133.83,6.99111619]
[1763587020595,25.11207619,133.89,133.83,6.99111619]
[1763587020898,2.93314576,133.86,133.82,0.72]
[1763587021316,2.93314576,133.87,133.82,3.65314576]
[1763587021518,2.93314576,133.86,133.82,0.72]
[1763587021696,3.61314576,133.86,133.82,0.72]
[1763587022105,0.68,133.87,133.83,1.78]
[1763587022303,2.93314576,133.86,133.83,1.78]
[1763587022509,2.93314576,133.86,133.83,2.5]
[1763587022717,3.61314576,133.86,133.83,1.78]
[1763587022911,18.12096,133.88,133.83,1.78]
[1763587022912,5.2654117,133.85,133.83,1.78]
[1763587023398,0.68,133.87,133.83,1.78]
[1763587024225,5.2654117,133.87,133.83,2.5]
[1763587024533,18.12096,133.88,133.84,0.72]
[1763587024709,4.5854117,133.88,133.84,0.72]
[1763587024898,0.68,133.87,133.83,1.78]
[1763587025206,23.3863717,133.88,133.84,0.72]
[1763587025405,4.5854117,133.87,133.84,0.72]
[1763587025595,5.2654117,133.87,133.83,1.78]
[1763587025797,4.5854117,133.84,133.79,0.72]
[1763587026002,22.7063717,133.85,133.8,7.0854117]
[1763587026223,18.12096,133.85,133.81,4.5854117]
[1763587026422,1.78,133.89,133.81,4.5854117]
[1763587026423,4.5854117,133.89,133.84,4.5854117]
[1763587026598,0.68,133.91,133.85,1.78]
[1763587026801,0.78,133.93,133.86,9.78882769]
[1763587027001,18.12096,133.92,133.87,4.5854117]
[1763587027200,4.5854117,133.92,133.87,5.3054117]